Cogmind - Beta 13 @@@ ROGUE MODE // 2024.04.01 @ 15:12:25 Player: Ulinator001 Result: Destroyed by G-34 Mercenary with Small Laser Performance ------------- Evolutions (0) 0 Regions Visited (1) 200 Robots Destroyed (8) 40 Value Destroyed (152) 152 Prototype IDs (0) 0 Alien Tech Used (0) 0 Bonus (0) 0 TOTAL SCORE: 392 Bonus ------- None Cogmind --------- Core Integrity 0/250 Matter 236/300 Energy 125/125 System Corruption 0% Temperature Cool (6) Movement Core (450) Ox8 Location -10/Materials Parts ------- > --- POWER (1) -------- Light Ion Engine > --- PROPULSION (2) --- (None) > --- UTILITY (2) ------ Large Storage Unit Seismic Detector > --- WEAPON (2) ------- Assault Rifle > --- INVENTORY (15) --- Aluminum Leg Small Storage Unit Peak State ------------ > --- POWER ------------ Light Ion Engine > --- PROPULSION ------- Wheel Wheel > --- UTILITY ---------- Small Storage Unit Seismic Detector > --- WEAPON ----------- EM Pulse Gun > --- INVENTORY -------- Light Ion Engine Aluminum Leg Aluminum Leg Assault Rifle [Rating: 6] Favorites ----------- Power Light Ion Engine Engine Light Ion Engine Propulsion Wheel Treads Light Treads Leg Aluminum Leg Wheel Wheel Utility Small Storage Unit Device Seismic Detector Storage Small Storage Unit Weapon EM Pulse Gun Energy Gun EM Pulse Gun Ballistic Gun Assault Rifle Build | -11 -10 ------- Run | Yrd Mat Slots Evolved . | . . Power . | . . Propulsion . | . . Utility . | . . Weapon . | . . Parts Attached 12 | 7 5 Power 2 | 1 1 Engine 2 | 1 1 Core . | . . Reactor . | . . Propulsion 5 | 4 1 Treads 2 | 2 . Leg 1 | . 1 Wheel 2 | 2 . Hover . | . . Flight . | . . Utility 3 | 1 2 Device 1 | . 1 Storage 2 | 1 1 Processor . | . . Hackware . | . . Protection . | . . Artifact . | . . Weapon 2 | 1 1 Energy Gun 1 | 1 . Energy Cannon . | . . Ballistic Gun 1 | . 1 Ballistic Cannon . | . . Launcher . | . . Special Weapon . | . . Impact Weapon . | . . Slashing Weapon . | . . Piercing Weapon . | . . Special Melee Weapon . | . . Unidentified Prototypes . | . . Parts Lost 5 | . 5 Power 1 | . 1 Propulsion 3 | . 3 Utility . | . . Weapon 1 | . 1 Highest Loss Streak 4 | . 4 To Critical Strikes . | . . Average Slot Usage (%) 81 | . 81 Engine 13 | . 13 Leg 2 | . 2 Wheel 23 | . 23 Device 14 | . 14 Storage 14 | . 14 Energy Gun 12 | . 12 Ballistic Gun 1 | . 1 Naked Turns . | . . Heaviest Build 26 | 10 26 Greatest Support 40 | 40 20 Greatest Overweight (x) 2 | . 2 Average Overweight (x) . | . . Largest Inventory Capacity 15 | 8 15 Average Capacity 8 | 6 9 Most Carried 5 | 5 5 Average Carried 4 | 2 4 Final Capacity 15 | 8 15 Final Carried 4 | 4 2 Class Distribution -------------------- 100% | Mutant Dominant Class ---------------- Mutant | -10/Materials Resources | -11 -10 ----------- Run | Yrd Mat Matter Collected 261 | 179 82 Remotely . | . . Salvage Created 189 | . 189 Parts 15 | . 15 Haulers Intercepted . | . . Recyclers Shooed 1 | . 1 Parts Field Recycled . | . . Retrieved Matter . | . . Parts Self-Destructed . | . . Prevented . | . . Kills | -11 -10 ------- Run | Yrd Mat Combat Hostiles Destroyed 8 | . 8 Guns 7 | . 7 AOE 1 | . 1 Classes Destroyed 2 | . 2 Swarmer 5 | . 5 Grunt 3 | . 3 Best Kill Streak 4 | . 4 Combat Bots Only 4 | . 4 Max Kills in Single Turn 1 | . 1 Gunslinging . | . . Exploded 1 | . 1 Melee . | . . Uniques/NPCs Destroyed . | . . Combat | -11 -10 -------- Run | Yrd Mat Hostile Shots Fired 90 | . 90 Missed 20 | . 20 Damage Taken 678 | . 678 Core 256 | . 256 Absorbed by Shields . | . . Core Remaining (%) 100 | 100 . Volleys Fired 35 | . 35 Largest 1 | . 1 Hottest 40 | . 40 Shots Fired 35 | . 35 Gun 35 | . 35 Cannon . | . . Launcher . | . . Special . | . . Kinetic 10 | . 10 Thermal . | . . Explosive . | . . Electromagnetic 25 | . 25 Robot Hit Streak 6 | . 6 Robot Miss Streak 4 | . 4 Penetration Max . | . . Secondary Targets . | . . Shots Hit Robots 19 | . 19 Core Hits 12 | . 12 Critical Kills . | . . Critical Parts Destroyed . | . . Critical Strikes . | . . Melee Attacks . | . . Impact . | . . Slashing . | . . Piercing . | . . Sneak Attacks . | . . Combat Hostiles . | . . Follow-up Attacks . | . . Damage Inflicted 308 | . 308 Guns 264 | . 264 Cannons . | . . Explosions 44 | . 44 Melee . | . . Ramming . | . . Kinetic 99 | . 99 Thermal 44 | . 44 Explosive . | . . Electromagnetic 165 | . 165 Impact . | . . Slashing . | . . Piercing . | . . Highest Corruption . | . . Average Corruption . | . . Corruption Purged . | . . Corruption Blocked . | . . Overload Shots . | . . Overflow Damage 13 | . 13 Projectiles . | . . Explosions 13 | . 13 Melee . | . . Knockbacks . | . . Impact . | . . Kinetic . | . . Secondary . | . . Self-Inflicted Damage 38 | . 38 Shots 1 | . 1 Rammed . | . . Targets Rammed . | . . Kicked . | . . Crushed . | . . Highest Temperature 19 | . 19 Average Temperature 7 | . 7 Received Heat Transfer 162 | . 162 Siege Activations . | . . Robots Corrupted . | . . Combat Hostiles . | . . Parts Fried 1 | . 1 Impact Corruptions . | . . Robots Melted . | . . Combat Hostiles . | . . Parts Melted . | . . Heat Transferred . | . . Parts Sabotaged . | . . Parts Stolen . | . . Parts Stripped . | . . Power Chain Reactions 1 | . 1 Alert | -11 -10 ------- Run | Yrd Mat Peak Influence 217 | . 217 Initial . | . . Average 46 | . 61 Maximum Alert Level 1 | . 1 Low Security (%) 98 | 100 98 Level 1 1 | . 1 Level 2 . | . . Level 3 . | . . Level 4 . | . . Level 5 . | . . High Security . | . . Max Security . | . . Squads Dispatched 2 | . 2 Investigation 1 | . 1 Extermination . | . . Reinforcement 1 | . 1 Assault . | . . Garrison . | . . Intercept . | . . Searches Triggered . | . . Construction Impeded . | . . Haulers Reinforced . | . . Active Scanning Responses . | . . Cargo Convoy Interrupts . | . . Stealth | -11 -10 --------- Run | Yrd Mat Distress Signals 1 | . 1 Communications Jammed . | . . Distress Signals . | . . Times Spotted 13 | . 13 Peak Tracking Total 7 | . 7 Tactical Retreats 2 | . 2 Traps | -11 -10 ------- Run | Yrd Mat Traps Triggered 1 | . 1 Indirectly . | . . Trap Hack Attempts . | . . Triggered . | . . Disarmed . | . . Reprogrammed . | . . Reused . | . . Traps Extracted . | . . Installed . | . . Triggered . | . . Machines | -11 -10 ---------- Run | Yrd Mat Machines Disabled . | . . Max in Single Turn . | . . Machines Repaired . | . . Machines Dismantled . | . . Machines Sabotaged . | . . Overloaded Fab Kills . | . . Hacking | -11 -10 --------- Run | Yrd Mat Machines Accessed 3 | . 3 Terminals 3 | . 3 Fabricators . | . . Repair Stations . | . . Recycling Units . | . . Scanalyzers . | . . Garrison Access . | . . Total Hacks 3 | . 3 Successful 3 | . 3 Failed . | . . Catastrophic . | . . Database Lockouts . | . . Manual . | . . Terminals 3 | . 3 Fabricators . | . . Repair Stations . | . . Recycling Units . | . . Scanalyzers . | . . Garrison Access . | . . Terminal Hacks 3 | . 3 Terminal Index 1 | . 1 Alert Level 1 | . 1 Zone Layout 1 | . 1 Fabricator Hacks . | . . Repair Station Hacks . | . . Recycling Unit Hacks . | . . Scanalyzer . | . . Garrison Access Hacks . | . . Unauthorized Hacks . | . . Terminals . | . . Fabricators . | . . Repair Stations . | . . Recycling Units . | . . Scanalyzers . | . . Garrison Access . | . . Data Cores Recovered . | . . Used . | . . Hacking Detections . | . . Full Trace Events . | . . Feedback Events . | . . Feedback Blocked . | . . Robot Schematics Acquired . | . . Robots Built . | . . Authchips . | . . Time . | . . Total Robot Build Rating . | . . Part Schematics Acquired . | . . Parts Built . | . . Authchips . | . . Time . | . . Total Part Build Rating . | . . Parts Repaired . | . . Time . | . . Parts Recycled . | . . Recycled Matter . | . . Retrieved Matter . | . . Retrieved Components . | . . Parts Scanalyzed . | . . Part Schematics Acquired . | . . Parts Damaged . | . . Bothacking | -11 -10 ------------ Run | Yrd Mat Used RIF Installer . | . . Robots Hacked . | . . Non-combat . | . . Combat . | . . Robot Hacks Applied . | . . Relay Couplers Released . | . . Fabnet Peak Effective % . | . . Robots Rewired . | . . Allies Hacked . | . . Hacks Repelled . | . . Allies | -11 -10 -------- Run | Yrd Mat Total Allies . | . . Largest Group . | . . Highest-Rated Group . | . . Highest-Rated Ally . | . . Total Orders . | . . Ally Attacks . | . . Total Damage . | . . Kills . | . . Allies Corrupted . | . . Allies Melted . | . . Intel | -11 -10 ------- Run | Yrd Mat Robot Analysis Total . | . . Derelict Logs Recovered . | . . Drone Launches . | . . Drone Recoveries . | . . Exploration | -11 -10 ------------- Run | Yrd Mat Turns Passed 378 | 91 287 Spaces Moved 315 | 87 228 Core 9 | 7 2 Treads 7 | 7 . Legs 7 | . 7 Wheels 292 | 73 219 Hover . | . . Flight . | . . Fastest Speed 50 | 50 80 Average Speed 85 | 84 85 Slowest Speed 260 | 160 260 Overloaded Moves . | . . Propulsion Burnouts . | . . Robots Hopped . | . . Cave-ins Triggered . | . . Exploration Rate (%) 16 | 4 29 Regions Visited 1 Branch Regions . Pre-discovered Areas . | . . Known Exits Taken . | . . Unknown Exits Taken 1 | 1 . Scrap Searched . | . . Spaces Dug . | . . Terrain Destroyed 6 | . 6 Melee . | . . Projectile . | . . AOE 6 | . 6 Terrain Rammed . | . . Walls Destroyed . | . . Machines Disabled . | . . Actions | -11 -10 --------- Run | Yrd Mat Total 387 | 104 283 Wait 14 | . 14 Move 314 | 86 228 Hop . | . . Pick Up 7 | 6 1 Fast Attach 7 | 6 1 Attach 4 | 1 3 Detach 2 | 2 . Swap 1 | . 1 Drop 3 | 3 . Fire 35 | . 35 Melee . | . . Ram . | . . Kick . | . . Crush . | . . Escape Stasis . | . . Rewire . | . . Trap . | . . Miscellaneous . | . . Route ------- -11/Scrapyard -10/Materials (discovered 1 exit: [*Min]) History --------- Turn | Location | Event 9 | -11/Scrapyard | Discovered new exit (range 14) 92 | -11/Scrapyard | Entered Materials 302 | -10/Materials | Discovered new exit (range 15) 308 | -10/Materials | Build established: Mutant 330 | -10/Materials | Core integrity fell below 50% 350 | -10/Materials | Core integrity fell below 20% 365 | -10/Materials | Lost 4 parts (1p2n1w) 379 | -10/Materials | Destroyed by G-34 Mercenary with Small Laser Last Messages --------------- Lgt. Ion Engine destroyed. Destroyed Lgt. Ion Engine. U-05 Engineer builds a Wall. EM Pulse Gun destroyed. Wheel destroyed. U-05 Engineer lays Concrete. Acquired 21 matter. U-05 Engineer builds a Door. U-05 Engineer lays Concrete. U-05 Engineer builds a Wall. R-06 Scavenger collects Sml. Laser. G-34 Mercenary destroyed. U-05 Engineer destroyed. Acquired 41 matter. S-10 Pest destroyed. R-06 Scavenger collects Aluminum Leg. Aluminum Leg destroyed. R-06 Scavenger collects Lgt. Ion Engine. S-10 Pest destroyed. R-06 Scavenger collects Lgt. Assault Rifle. Map ----- +----------------------------------------------------+ | ?????????????????????????????????????????????? | | ?????????????????????????????????????????????? | | ?????????????????????????????????????????????? | | ?????????????????????????????????????????????? | | ?????????????????????????????????????????????? | | ?????????????????????????????????????????????? | | ?????????????????????????????????????????????? | | ?????????????????????????????????????????????? | | ?????????????????????????????????????????????? | | ?????????????????????????????????????????????? | | ?????????????????????????????????????????????? | | ?????????????????????????????????????????????? | | ?????????????????????????????????????????????? | | ?????????????????????????????????????????????? | | ?????????????????????????????????????????????? | | ????????????????????????#+#??????????????????? | | ??????????????????? ???? ??????????????????? | | ???????????????????T???? ??????????????????? | | ??????????????????? ???? ??????????????????? | | ??????????????????? ????#+###?##+###?????????? | | ??????????????????? ????#%s #= ??????????? | | ??????????????????# #???# # ???????????? | | ??????????????????# #???# +? """???????????? | | ??????????????????# #???# # """???????????? | | ??????????????????# #??## # "?????????????? | | ??????????????????# #??##@r ##??##???????????? | | ??????????????????# #???#% ##?!!#???????????? | | ???????#??????????# ######g### !!#???????????? | | ????# ####### *=!### [[#???????????? | | ???? %[% [[#???????????? | | ???? < ! =* [[#???????????? | | ???? [[#???????????? | | ????? ## #######???????????? | | ????? "|"????# %""""""" #?????????????????? | | ?????????????# """"""" ############??????? | | ?????????????# """"""" ## #??????? | | ????????????##% """"""" ## #??????? | | ????????????# """"""" ## #??????? | | ????????????# # #??????? | | ????????????# + """ """ #??????? | | ????????????# # """ """ #??????? | | ????????????# ##+#### # """ """ #??????? | | ????????????## #### ## # #??????? | | ?????????????# #??# T ## ###########??????? | | ?????????????# #??# + #????????????????? | | ?????????????# #??# ## #????????????????? | | ?????????????# #??# ## #????????????????? | | ?????????????# #??# ## #??##########????? | | ?????????????# #??# ## #??# """ #????? | | ?????????????# #??# + #??# "T" #????? | +----------------------------------------------------+ Best States ------------- Heat Dissipation 25 Energy Generation 10 Energy Capacity 125 Matter Stores 246 Matter Capacity 300 Sight Range 16 Terrain Scan Density 10 Evasion (%) 50 Recoil Reduction 1 Item Schematics ----------------- None Robot Schematics ------------------ None Fabricated ------------ Nothing Alien Tech Used ----------------- None Achievements -------------- None Challenges ------------ None Game ------ Seed MeleeAbsorptionDriver Manual? 0 Play Time 00:16:04 Cumulative 2.2 hours Start 2024.03.31 @ 21:57:57 End 2024.04.01 @ 15:12:25 Sessions 2 Manual Loads 0 Difficulty Rogue Special Mode None Game No. 4 Rogue 4 Adventurer 0 Explorer 0 Win Type - Total 0 Types 0/0/0/0/0/0/0/0/0 Lore% 1 Gallery% 4 Achievement% 4 Wizard Run 0 Options --------- Layout 1 ASCII 0 Keyboard 1 Movement Numpad Keybinds 0 Fullscreen 1 Font 24/Smallcaps Map View 50x35 Zoom Use 0% Tactical HUD 0 Map Filters NONE Filters NONE Steam 1 RUN: f182b675-c776-4b2a-9da8-2ddfa7f71698